lending/lending_fUSD_20240207
["ID","MTS","AMOUNT","RATE_DAILY","PERIOD"]
[313436772,1707347457763,-1544.48,0.00049315,61]
[313436773,1707347457773,-539.01,0.00049315,61]
[313436774,1707347457783,-500.0,0.00049315,61]
[313436775,1707347457793,-1435.04,0.00049315,61]
[313436776,1707347457805,-500.0,0.00049315,61]
[313436777,1707347457815,-539.7,0.00049315,61]
[313436778,1707347457825,-645.69,0.00049315,61]
[313436779,1707347457835,-500.0,0.00049315,61]
[313436780,1707347457846,-500.0,0.00049315,61]
[313436781,1707347457856,-500.0,0.00049315,61]
[313436782,1707347457867,-709.73,0.00049315,61]
[313436783,1707347457877,-500.0,0.00049315,61]
[313436784,1707347457887,-500.0,0.00049315,61]
[313436785,1707347457897,-500.0,0.00049315,61]
[313436786,1707347457907,-500.0,0.00049315,61]
[313436787,1707347457917,-740.83,0.00049315,2]
[313436788,1707347457927,-1656.01,0.00049315,61]
[313436789,1707347457936,-1199.69,0.00049315,61]
[313436790,1707347457946,-1492.44,0.00049315,61]
[313436791,1707347457956,-788.21,0.00049315,61]
[313436792,1707347457966,-500.0,0.00049315,61]
[313436793,1707347457976,-500.0,0.00049315,61]
[313436794,1707347457986,-1265.23,0.00049315,61]
[313436795,1707347457996,-500.0,0.00049315,61]
[313436796,1707347458009,-500.0,0.00049315,61]
[313436797,1707347458019,-1083.11,0.00049315,61]
[313436798,1707347458028,-413.64594647,0.00049315,61]
[313436799,1707347458297,-500.0,0.00049315,61]
[313436800,1707347458313,-500.0,0.00049315,61]
[313436801,1707347458322,-687.22,0.00049315,61]
[313436802,1707347458331,-500.0,0.00049315,61]
[313436803,1707347458341,-500.0,0.00049315,61]
[313436804,1707347458350,-500.0,0.00049315,61]
[313436805,1707347458358,-500.0,0.00049315,61]
[313436806,1707347458368,-500.0,0.00049315,61]
[313436807,1707347458377,-500.0,0.00049315,61]
[313436808,1707347458387,-500.0,0.00049315,61]
[313436809,1707347458396,-500.0,0.00049315,61]
[313436810,1707347458405,-500.0,0.00049315,61]
[313436811,1707347458415,-500.0,0.00049315,61]
[313436812,1707347458424,-517.85,0.00049315,61]
[313436813,1707347458433,-500.0,0.00049315,61]
[313436814,1707347458443,-1979.44,0.00049315,61]
[313436815,1707347458452,-500.0,0.00049315,61]
[313436816,1707347458462,-500.0,0.00049315,61]
[313436817,1707347458471,-500.0,0.00049315,61]
[313436818,1707347458481,-500.0,0.00049315,61]
[313436819,1707347458490,-500.0,0.00049315,61]
[313436820,1707347458499,-500.0,0.00049315,61]
[313436821,1707347458509,-500.0,0.00049315,61]
[313436822,1707347458519,-500.0,0.00049315,61]
[313436823,1707347458528,-572.27455215,0.00049315,61]
[313436824,1707347458537,-500.0,0.00049315,61]
[313436825,1707347458547,-500.0,0.00049315,61]
[313436826,1707347458556,-779.42,0.00049315,61]
[313436827,1707347458565,-500.0,0.00049315,61]
[313436828,1707347458575,-500.0,0.00049315,61]
[313436829,1707347458584,-500.0,0.00049315,61]
[313436830,1707347458594,-536.91,0.00049315,61]
[313436831,1707347458603,-500.0,0.00049315,61]
[313436832,1707347458613,-177.21664481,0.00049315,61]
[313436833,1707347458622,-521.2584277,0.00049315,61]
[313436834,1707347458632,-1371.35,0.00049315,31]
[313436835,1707347458641,-678.28,0.00049315,61]
[313436836,1707347458651,-500.0,0.00049315,61]
[313436837,1707347458660,-553.4,0.00049315,61]
[313436838,1707347458670,-500.0,0.00049315,61]
[313436839,1707347458679,-726.06,0.00049315,61]
[313436840,1707347458689,-563.43,0.00049315,61]
[313436841,1707347458698,-537.19340618,0.00049315,61]
[313436842,1707347458707,-1615.47,0.00049315,61]
[313436843,1707347458717,-500.0,0.00049315,61]
[313436844,1707347458726,-1043.14,0.00049315,61]
[313436845,1707347458735,-500.0,0.00049315,61]
[313436846,1707347458745,-510.29,0.00049315,61]
[313436847,1707347458754,-1175.97,0.00049315,61]
[313436848,1707347458763,-500.0,0.00049315,61]
[313436849,1707347458773,-500.0,0.00049315,61]
[313436850,1707347458782,-500.0,0.00049315,61]
[313436851,1707347458791,-500.0,0.00049315,61]
[313436852,1707347458801,-500.0,0.00049315,61]
[313436853,1707347458810,-500.0,0.00049315,61]
[313436854,1707347458819,-567.92,0.00049315,61]
[313436855,1707347458829,-1193.33,0.00049315,61]
[313436856,1707347458838,-500.0,0.00049315,61]
[313436857,1707347458847,-500.0,0.00049315,61]
[313436858,1707347458857,-500.0,0.00049315,61]
[313436859,1707347458866,-500.0,0.00049315,61]
[313436860,1707347458875,-500.0,0.00049315,61]
[313436861,1707347458885,-500.0,0.00049315,61]
[313436862,1707347458894,-500.0,0.00049315,61]
[313436863,1707347458904,-500.0,0.00049315,61]
[313436864,1707347458913,-153.28014333,0.00049315,61]
[313436865,1707347458923,-874.9,0.00049315,61]
[313436866,1707347458932,-770.71,0.00049315,61]
[313436867,1707347458942,-500.0,0.00049315,61]
[313436868,1707347458951,-500.0,0.00049315,61]
[313436869,1707347458961,-573.31,0.00049315,61]
[313436870,1707347458970,-500.0,0.00049315,61]
[313436871,1707347458980,-368.73692041,0.00049315,61]
[313436872,1707347458989,-1088.76,0.00049315,61]
[313436873,1707347459001,-1386.24,0.00049315,61]
[313436874,1707347459010,-2593.53,0.00049315,30]
[313436875,1707347459020,-499.54895025,0.00049315,61]
[313436876,1707347459029,-172.08643564,0.00049315,61]
[313436877,1707347459039,-500.0,0.00049315,61]
[313436878,1707347459048,-496.30541697,0.00049315,61]
[313436879,1707347459058,-500.0,0.00049315,61]
[313436880,1707347459067,-500.0,0.00049315,61]
[313436881,1707347459079,-500.0,0.00049315,61]
[313436882,1707347459090,-376.01832169,0.00049315,61]
[313436883,1707347459099,-500.0,0.00049315,61]
[313436884,1707347459109,-500.0,0.00049315,61]
[313436885,1707347459119,-500.0,0.00049315,61]
[313436886,1707347459129,-500.0,0.00049315,61]
[313436887,1707347459138,-652.45,0.00049315,61]
[313436888,1707347459147,-494.03866106,0.00049315,61]
[313436889,1707347459157,-500.0,0.00049315,61]
[313436890,1707347459166,-500.0,0.00049315,61]
[313436891,1707347459175,-500.0,0.00049315,61]
[313436892,1707347459185,-500.0,0.00049315,61]
[313436893,1707347459194,-500.0,0.00049315,61]
[313436894,1707347459204,-500.0,0.00049315,61]
[313436895,1707347459213,-504.25,0.00049315,61]
[313436896,1707347459222,-500.0,0.00049315,61]
[313436897,1707347459231,-2700.69,0.00049315,61]
[313436898,1707347459240,-968.52,0.00049315,61]
[313436899,1707347459249,-500.0,0.00049315,61]
[313436900,1707347459259,-723.52,0.00049315,61]
[313436901,1707347459269,-742.25,0.00049315,61]
[313436902,1707347459278,-166.288725,0.00049315,14]
[313436903,1707347459287,-500.0,0.00049315,61]
[313436904,1707347459297,-517.27408267,0.00049315,61]
[313436905,1707347459306,-500.0,0.00049315,61]
[313436906,1707347459316,-166.288718,0.00049315,14]
[313436907,1707347459325,-1034.49,0.00049315,61]
[313436908,1707347459335,-163.90602491,0.00049315,61]
[313436909,1707347459345,-500.0,0.00049315,61]
[313436910,1707347459355,-500.0,0.00049315,61]
[313436911,1707347459365,-500.0,0.00049315,61]
[313436912,1707347459374,-500.0,0.00049315,61]
[313436913,1707347459383,-655.03,0.00049315,61]
[313436914,1707347459393,-500.0,0.00049315,61]
[313436915,1707347459403,-500.0,0.00049315,61]
[313436916,1707347459412,-1012.28,0.00049315,61]
[313436917,1707347459421,-500.0,0.00049315,61]
[313436918,1707347459431,-500.0,0.00049315,61]
[313436919,1707347459440,-500.0,0.00049315,61]
[313436920,1707347459449,-500.0,0.00049315,61]
[313436921,1707347459458,-500.0,0.00049315,61]
[313436922,1707347459468,-500.0,0.00049315,61]
[313436923,1707347459478,-500.0,0.00049315,61]
[313436924,1707347459488,-3466.62,0.00049315,61]
[313436925,1707347459497,-500.0,0.00049315,61]
[313436926,1707347459507,-195.71999458,0.00049315,61]
[313436927,1707347459516,-500.0,0.00049315,61]
[313436928,1707347459526,-398.14729283,0.00049315,61]
[313436929,1707347459536,-810.34,0.00049315,61]
[313436930,1707347459545,-1031.85,0.00049315,61]
[313436931,1707347459555,-205.961307,0.00049315,14]
[313436932,1707347459565,-1307.63,0.00049315,61]
[313436933,1707347459574,-500.0,0.00049315,61]
[313436934,1707347459584,-596.49,0.00049315,61]
[313436935,1707347459594,-547.91,0.00049315,61]
[313436936,1707347459605,-938.29,0.00049315,61]
[313436937,1707347459614,-500.0,0.00049315,61]
[313436938,1707347459623,-500.0,0.00049315,60]
[313436939,1707347459632,-500.0,0.00049315,61]
[313436940,1707347459641,-500.0,0.00049315,61]
[313436941,1707347459651,-500.0,0.00049315,61]
[313436942,1707347459660,-2318.34,0.00049315,61]
[313436943,1707347459670,-500.0,0.00049315,61]
[313436944,1707347459680,-500.0,0.00049315,61]
[313436945,1707347459690,-500.0,0.00049315,61]
[313436946,1707347459699,-500.0,0.00049315,61]
[313436947,1707347459709,-500.0,0.00049315,61]
[313436948,1707347459718,-1379.71,0.00049315,61]
[313436949,1707347459727,-500.0,0.00049315,61]
[313436950,1707347459737,-500.0,0.00049315,61]
[313436951,1707347459746,-500.0,0.00049315,61]
[313436952,1707347459756,-500.0,0.00049315,61]
[313436953,1707347459765,-500.0,0.00049315,61]
[313436954,1707347459775,-7090.44,0.00049315,61]
[313436955,1707347459784,-500.0,0.00049315,61]
[313436956,1707347459794,-500.0,0.00049315,61]
[313436957,1707347459803,-500.0,0.00049315,61]
[313436958,1707347459813,-500.0,0.00049315,61]
[313436959,1707347459822,-551.34,0.00049315,61]
[313436960,1707347459831,-500.0,0.00049315,61]
[313436961,1707347459841,-999.68,0.00049315,61]
[313436962,1707347459851,-500.0,0.00049315,61]
[313436963,1707347459861,-1026.8,0.00049315,61]
[313436964,1707347459870,-546.41147231,0.00049315,61]
[313436965,1707347459880,-500.0,0.00049315,61]
[313436966,1707347459890,-5027.68,0.00049315,61]
[313436967,1707347459899,-500.0,0.00049315,61]
[313436968,1707347459909,-500.0,0.00049315,61]
[313436969,1707347459918,-650.61,0.00049315,61]
[313436970,1707347459928,-500.0,0.00049315,61]
[313436971,1707347459937,-547.55,0.00049315,61]
[313436972,1707347459946,-500.0,0.00049315,61]
[313436973,1707347459956,-500.0,0.00049315,61]
[313436974,1707347459965,-531.32,0.00049315,61]
[313436975,1707347459975,-541.45397222,0.00049315,61]
[313436976,1707347459984,-500.0,0.00049315,61]
[313436977,1707347459997,-1570.26,0.00049315,61]
[313436978,1707347460007,-500.0,0.00049315,61]
[313436979,1707347460016,-10501.63,0.00049315,61]
[313436980,1707347460025,-1592.24,0.00049315,61]
[313436981,1707347460034,-500.0,0.00049315,61]
[313436982,1707347460044,-699.2,0.00049315,61]
[313436983,1707347460053,-500.0,0.00049315,61]
[313436984,1707347460063,-500.0,0.00049315,61]
[313436985,1707347460073,-500.0,0.00049315,61]
[313436986,1707347460082,-500.0,0.00049315,61]
[313436987,1707347460093,-1116.6,0.00049315,61]
[313436988,1707347460102,-500.0,0.00049315,61]
[313436989,1707347460112,-750.16,0.00049315,61]
[313436990,1707347460121,-923.63,0.00049315,61]
[313436991,1707347460131,-524.24291123,0.00049315,61]
[313436992,1707347460141,-3906.72,0.00049315,61]
[313436993,1707347460151,-500.0,0.00049315,61]
[313436994,1707347460161,-4016.41,0.00049315,61]
[313436995,1707347460170,-500.0,0.00049315,61]
[313436996,1707347460180,-6471.24,0.00049315,61]
[313436997,1707347460190,-500.0,0.00049315,61]
[313436998,1707347460199,-1549.35,0.00049315,61]
[313436999,1707347460208,-886.29,0.00049315,61]
[313437000,1707347460218,-841.38,0.00049315,61]
[313437001,1707347460227,-500.0,0.00049315,61]
[313437002,1707347460237,-280.69325,0.00049315,14]
[313437003,1707347460247,-500.0,0.00049315,61]
[313437004,1707347460257,-500.0,0.00049315,61]
[313437005,1707347460267,-500.0,0.00049315,61]
[313437006,1707347460277,-518.08173194,0.00049315,61]
[313437007,1707347460286,-282.58386916,0.00049315,61]
[313437008,1707347460296,-1555.84,0.00049315,61]
[313437009,1707347460305,-1152.99,0.00049315,61]
[313437010,1707347460315,-500.0,0.00049315,61]
[313437011,1707347460324,-1548.24,0.00049315,61]
[313437012,1707347460334,-500.0,0.00049315,61]
[313437013,1707347460343,-500.0,0.00049315,61]
[313437014,1707347460353,-500.0,0.00049315,61]
[313437015,1707347460362,-500.0,0.00049315,61]
[313437016,1707347460372,-534.97,0.00049315,61]
[313437017,1707347460381,-12781.73,0.00049315,61]
[313437018,1707347460391,-812.43,0.00049315,61]
[313437019,1707347460400,-500.0,0.00049315,5]
[313437020,1707347460410,-2641.55301939,0.00049315,40]
[313437021,1707347460419,-151.0,0.00049315,14]
[313437022,1707347460428,-3890.54,0.00049315,61]
[313437023,1707347460438,-500.0,0.00049315,61]
[313437024,1707347460448,-1835.07,0.00049315,61]
[313437025,1707347460457,-500.07,0.00049315,61]
[313437026,1707347460467,-500.0,0.00049315,61]
[313437027,1707347460476,-500.0,0.00049315,61]
[313437028,1707347460486,-500.0,0.00049315,61]
[313437029,1707347460496,-500.0,0.00049315,61]
[313437030,1707347460507,-1323.04,0.00049315,61]
[313437031,1707347460516,-580.42,0.00049315,61]
[313437032,1707347460526,-500.0,0.00049315,61]
[313437033,1707347460536,-7177.08,0.00049315,61]
[313437034,1707347460545,-500.0,0.00049315,61]
[313437035,1707347460555,-728.56,0.00049315,61]
[313437036,1707347460564,-500.0,0.00049315,61]
[313437037,1707347460574,-500.0,0.00049315,61]
[313437038,1707347460584,-1728.03,0.00049315,61]
[313437039,1707347460595,-633.03,0.00049315,61]
[313437040,1707347460605,-3783.79,0.00049315,61]
[313437041,1707347460615,-500.0,0.00049315,61]
[313437042,1707347460625,-2104.05,0.00049315,5]
[313437043,1707347460634,-500.0,0.00049315,61]
[313437044,1707347460643,-518.22448845,0.00049315,30]
[313437045,1707347460653,-751.21,0.00049315,61]
[313437046,1707347460663,-500.0,0.00049315,61]
[313437047,1707347460744,-1982.88,0.00049315,61]
[313437048,1707347460753,-500.0,0.00049315,61]
[313437049,1707347460763,-1495.36,0.00049315,61]
[313437050,1707347460772,-544.63066161,0.00049315,61]
[313437051,1707347460782,-500.0,0.00049315,61]
[313437052,1707347460792,-4092.19,0.00049315,61]
[313437053,1707347460802,-2548.02,0.00049315,61]
[313437054,1707347460811,-500.0,0.00049315,61]
[313437055,1707347460821,-500.0,0.00049315,61]
[313437056,1707347460830,-13188.12,0.00049315,61]
[313437057,1707347460839,-2658.66,0.00049315,61]
[313437058,1707347460852,-500.0,0.00049315,61]
[313437059,1707347460862,-500.0,0.00049315,61]
[313437060,1707347460871,-1169.7,0.00049315,61]
[313437061,1707347460881,-500.0,0.00049315,61]
[313437062,1707347460890,-510.73,0.00049315,61]
[313437063,1707347460900,-500.0,0.00049315,61]
[313437064,1707347460909,-253.3065196,0.00049315,61]
[313437065,1707347460918,-500.0,0.00049315,61]
[313437066,1707347460928,-500.0,0.00049315,61]
[313437067,1707347460937,-819.7,0.00049315,61]
[313437068,1707347460946,-1213.41,0.00049315,61]
[313437069,1707347460956,-619.7598193,0.00049315,61]
[313437070,1707347460965,-500.0,0.00049315,61]
[313437071,1707347460975,-500.0,0.00049315,61]
[313437072,1707347460984,-150.86923949,0.00049315,61]
[313437073,1707347460994,-500.0,0.00049315,61]
[313437074,1707347461012,-979.46,0.00049315,61]
[313437075,1707347461030,-1090.89,0.00049315,61]
[313437076,1707347461048,-500.0,0.00049315,61]
[313437077,1707347461066,-15411.08,0.00049315,61]
[313437078,1707347461078,-10890.57,0.00049315,61]
[313437079,1707347461087,-14146.48,0.00049315,61]
[313437080,1707347461097,-995.52,0.00049315,61]
[313437081,1707347461108,-591.09,0.00049315,61]
[313437082,1707347461118,-500.0,0.00049315,61]
[313437083,1707347461127,-586.96,0.00049315,61]
[313437084,1707347461137,-646.75,0.00049315,61]
[313437085,1707347461146,-587.64,0.00049315,61]
[313437086,1707347461155,-730.49,0.00049315,61]
[313437087,1707347461165,-3319.85,0.00049315,61]
[313437088,1707347461175,-892.51,0.00049315,61]
[313437089,1707347461185,-1138.36,0.00049315,61]
[313437090,1707347461195,-500.0,0.00049315,30]
[313437091,1707347461204,-500.0,0.00049315,61]
[313437092,1707347461214,-755.46,0.00049315,61]
[313437093,1707347461224,-2767.87,0.00049315,61]
[313437094,1707347461233,-782.81,0.00049315,61]
[313437095,1707347461242,-500.0,0.00049315,61]
[313437096,1707347461252,-500.0,0.00049315,61]
[313437097,1707347461261,-3455.92,0.00049315,61]
[313437098,1707347461271,-500.0,0.00049315,61]
[313437099,1707347461280,-6467.05,0.00049315,61]
[313437100,1707347461290,-1017.23,0.00049315,61]
[313437101,1707347461300,-1192.09,0.00049315,61]
[313437102,1707347461309,-500.0,0.00049315,61]
[313437103,1707347461318,-500.0,0.00049315,61]
[313437104,1707347461328,-500.0,0.00049315,61]
[313437105,1707347461338,-534.39,0.00049315,61]
[313437106,1707347461350,-500.0,0.00049315,61]
[313437107,1707347461360,-500.0,0.00049315,61]
[313437108,1707347461370,-500.0,0.00049315,61]
[313437109,1707347461379,-500.0,0.00049315,61]
[313437110,1707347461389,-500.0,0.00049315,61]
[313437111,1707347461399,-500.0,0.00049315,61]
[313437112,1707347461408,-500.0,0.00049315,61]
[313437113,1707347461417,-4434.79,0.00049315,61]
[313437114,1707347461427,-500.0,0.00049315,61]
[313437115,1707347461436,-500.0,0.00049315,61]
[313437116,1707347461445,-233.81698,0.00049315,14]
[313437117,1707347461454,-500.0,0.00049315,61]
[313437118,1707347461464,-1408.58,0.00049315,61]
[313437119,1707347461473,-2683.22,0.00049315,61]
[313437120,1707347461482,-951.82,0.00049315,61]
[313437121,1707347461492,-500.0,0.00049315,61]
[313437122,1707347461501,-704.19,0.00049315,61]
[313437123,1707347461511,-500.0,0.00049315,61]
[313437124,1707347461520,-500.0,0.00049315,61]
[313437125,1707347461530,-500.0,0.00049315,61]
[313437126,1707347461540,-469.74279836,0.00049315,61]
[313437127,1707347461549,-551.99,0.00049315,61]
[313437128,1707347461558,-233.816971,0.00049315,14]
[313437129,1707347461568,-1452.28,0.00049315,61]
[313437130,1707347461577,-1301.3,0.00049315,61]
[313437131,1707347461586,-500.0,0.00049315,61]
[313437132,1707347461595,-230.8220144,0.00049315,61]
[313437133,1707347461604,-775.57,0.00049315,61]
[313437134,1707347461613,-5327.22,0.00049315,61]
[313437135,1707347461622,-546.55971687,0.00049315,61]
[313437136,1707347461632,-2638.6,0.00049315,61]
[313437137,1707347461641,-1386.03,0.00049315,61]
[313437138,1707347461650,-500.0,0.00049315,61]
[313437139,1707347461659,-500.0,0.00049315,61]
[313437140,1707347461668,-396.4759979,0.00049315,61]
[313437141,1707347461678,-500.0,0.00049315,61]
[313437142,1707347461687,-197.32,0.00049315,61]
[313437143,1707347461696,-500.0,0.00049315,61]
[313437144,1707347461708,-1044.99,0.00049315,61]
[313437145,1707347461749,-1334.41,0.00049315,61]
[313437146,1707347461758,-500.0,0.00049315,61]
[313437147,1707347461767,-965.51,0.00049315,61]
[313437148,1707347461777,-9060.5,0.00049315,61]
[313437149,1707347461786,-500.0,0.00049315,61]
[313437150,1707347461796,-500.0,0.00049315,61]
[313437151,1707347461805,-500.0,0.00049315,61]
[313437152,1707347461815,-500.0,0.00049315,61]
[313437153,1707347461824,-500.0,0.00049315,61]
[313437154,1707347461834,-1645.79,0.00049315,61]
[313437155,1707347461843,-500.0,0.00049315,61]
[313437156,1707347461853,-500.0,0.00049315,61]
[313437157,1707347461862,-500.0,0.00049315,61]
[313437158,1707347461871,-1212.78,0.00049315,61]
[313437159,1707347461881,-1000.0,0.00049315,120]
[313437160,1707347461890,-500.0,0.00049315,61]
[313437161,1707347461900,-500.0,0.00049315,61]
[313437162,1707347461910,-1538.22,0.00049315,61]
[313437163,1707347461919,-2000.0,0.00049315,120]
[313437164,1707347461928,-912.48,0.00049315,61]
[313437165,1707347461938,-2474.47,0.00049315,61]
[313437166,1707347461948,-500.0,0.00049315,61]
[313437167,1707347461958,-1040.51,0.00049315,61]
[313437168,1707347461968,-6163.74,0.00049315,61]
[313437169,1707347461979,-500.0,0.00049315,61]
[313437170,1707347461990,-500.0,0.00049315,61]
[313437171,1707347462006,-5000.0,0.00049315,61]
[313437172,1707347462024,-3096.57,0.00049315,61]
[313437173,1707347462034,-500.0,0.00049315,61]
[313437174,1707347462044,-500.0,0.00049315,61]
[313437175,1707347462055,-500.0,0.00049315,61]
[313437176,1707347462065,-500.0,0.00049315,61]
[313437177,1707347462075,-3262.84,0.00049315,61]
[313437178,1707347462085,-500.0,0.00049315,61]
[313437179,1707347462096,-500.0,0.00049315,61]
[313437180,1707347462105,-500.0,0.00049315,61]
[313437181,1707347462115,-4620.53,0.00049315,61]
[313437182,1707347462125,-605.03,0.00049315,61]
[313437183,1707347462134,-500.0,0.00049315,61]
[313437184,1707347462143,-2571.02,0.00049315,61]
[313437185,1707347462153,-500.0,0.00049315,61]
[313437186,1707347462162,-5162.98,0.00049315,61]
[313437187,1707347462171,-500.0,0.00049315,61]
[313437188,1707347462181,-777.37,0.00049315,61]
[313437189,1707347462190,-43223.85,0.00049315,61]
[313437190,1707347462200,-500.0,0.00049315,61]
[313437191,1707347462211,-500.0,0.00049315,61]
[313437192,1707347462220,-500.0,0.00049315,61]
[313437193,1707347462230,-500.0,0.00049315,61]
[313437194,1707347462240,-500.0,0.00049315,61]
[313437195,1707347462250,-500.0,0.00049315,61]
[313437196,1707347462260,-1341.56,0.00049315,61]
[313437197,1707347462269,-500.0,0.00049315,61]
[313437198,1707347462278,-500.0,0.00049315,120]
[313437199,1707347462288,-500.0,0.00049315,61]
[313437200,1707347462298,-2451.8,0.00049315,61]
[313437201,1707347462308,-500.0,0.00049315,61]
[313437202,1707347462317,-2551.1,0.00049315,61]
[313437203,1707347462326,-705.67,0.00049315,61]
[313437204,1707347462336,-500.0,0.00049315,61]
[313437205,1707347462347,-897.07,0.00049315,61]
[313437206,1707347462357,-500.0,0.00049315,61]
[313437207,1707347462367,-642.66,0.00049315,61]
[313437208,1707347462377,-500.0,0.00049315,61]
[313437209,1707347462387,-500.0,0.00049315,61]
[313437210,1707347462397,-3166.75,0.00049315,61]
[313437211,1707347462407,-500.0,0.00049315,61]
[313437212,1707347462417,-892.29,0.00049315,61]
[313437213,1707347462427,-1994.74,0.00049315,61]
[313437214,1707347462436,-198.58304697,0.00049315,61]
[313437215,1707347462446,-500.0,0.00049315,61]
[313437216,1707347462455,-2396.09,0.00049315,61]
[313437217,1707347462464,-1037.14,0.00049315,61]
[313437218,1707347462474,-631.14234404,0.00049315,61]
[313437219,1707347462484,-680.03,0.00049315,61]
[313437220,1707347462493,-25185.74,0.00049315,61]
[313437221,1707347462503,-2909.01,0.00049315,61]
[313437222,1707347462513,-500.0,0.00049315,61]
[313437223,1707347462524,-563.01486464,0.00049315,61]
[313437224,1707347462534,-500.0,0.00049315,61]
[313437225,1707347462543,-535.88,0.00049315,61]
[313437226,1707347462554,-3203.86,0.00049315,61]
[313437227,1707347462563,-500.0,0.00049315,61]
[313437228,1707347462573,-500.0,0.00049315,61]
[313437229,1707347462583,-500.0,0.00049315,61]
[313437230,1707347462593,-2960.25,0.00049315,61]
[313437231,1707347462602,-500.0,0.00049315,61]
[313437232,1707347462612,-500.0,0.00049315,61]
[313437233,1707347462622,-1727.02,0.00049315,61]
[313437234,1707347462632,-6381.13,0.00049315,61]
[313437235,1707347462642,-500.0,0.00049315,61]
[313437236,1707347462652,-3183.44,0.00049315,61]
[313437237,1707347462662,-693.07,0.00049315,61]
[313437238,1707347462672,-500.0,0.00049315,61]
[313437239,1707347462682,-500.0,0.00049315,61]
[313437240,1707347462691,-500.0,0.00049315,61]
[313437241,1707347462701,-804.8,0.00049315,61]
[313437242,1707347462711,-500.0,0.00049315,61]
[313437243,1707347462721,-1176.69,0.00049315,61]
[313437244,1707347462731,-3540.6,0.00049315,61]
[313437245,1707347462741,-562.39240761,0.00049315,10]
[313437246,1707347462751,-500.0,0.00049315,61]
[313437247,1707347462761,-500.0,0.00049315,61]
[313437248,1707347462771,-500.0,0.00049315,61]
[313437249,1707347462781,-508.68,0.00049315,61]
[313437250,1707347462791,-500.0,0.00049315,61]
[313437251,1707347462801,-500.0,0.00049315,61]
[313437252,1707347462811,-516.01311302,0.00049315,61]
[313437253,1707347462821,-297.9113261,0.00049315,61]
[313437254,1707347462830,-542.99874152,0.00049315,61]
[313437255,1707347462840,-500.0,0.00049315,61]
[313437256,1707347462850,-500.0,0.00049315,61]
[313437257,1707347462859,-500.0,0.00049315,61]
[313437258,1707347462870,-3372.12,0.00049315,61]
[313437259,1707347462879,-4463.56,0.00049315,61]
[313437260,1707347462890,-711.04,0.00049315,61]
[313437261,1707347462901,-162.23139549,0.00049315,61]
[313437262,1707347462911,-500.0,0.00049315,61]
[313437263,1707347462921,-883.47,0.00049315,61]
[313437264,1707347462932,-500.0,0.00049315,61]
[313437265,1707347462942,-575.16,0.00049315,61]
[313437266,1707347462952,-791.41,0.00049315,61]
[313437267,1707347462962,-500.0,0.00049315,61]
[313437268,1707347462972,-500.0,0.00049315,61]
[313437269,1707347462982,-500.0,0.00049315,61]
[313437270,1707347462992,-750.3,0.00049315,61]
[313437271,1707347463003,-4830.04,0.00049315,61]